[Event "Late-Titled-Tuesday-Blitz-February-06-2024"]
[Site "Chess.com"]
[Date "2024.02.06"]
[Round "6"]
[White "DonJuanEGenaro"]
[Black "BebeBonito2022"]
[Result "0-1"]
[WhiteElo "2071"]
[BlackElo "2329"]
[TimeControl "180+1"]
[EndTime "15:06:49 PST"]
[Termination "BebeBonito2022 won on time"]

1. Nf3 {[%clk 0:02:59.1]} 1... Nf6 {[%clk 0:02:59.4]} 2. d4 {[%clk 0:02:58.5]}
2... d5 {[%clk 0:02:59.4]} 3. c4 {[%clk 0:02:57.7]} 3... e6 {[%clk 0:02:59.2]}
4. Nc3 {[%clk 0:02:56.5]} 4... Bb4 {[%clk 0:02:59.2]} 5. e3 {[%clk 0:02:54.2]}
5... O-O {[%clk 0:02:57.9]} 6. Bd3 {[%clk 0:02:40.3]} 6... dxc4 {[%clk
0:02:55.2]} 7. Bxc4 {[%clk 0:02:39.7]} 7... c5 {[%clk 0:02:55.9]} 8. O-O {[%clk
0:02:38.1]} 8... Nc6 {[%clk 0:02:48.6]} 9. a3 {[%clk 0:02:29.2]} 9... Ba5 {[%clk
0:02:43.9]} 10. Qe2 {[%clk 0:01:47]} 10... cxd4 {[%clk 0:02:43.1]} 11. exd4
{[%clk 0:01:44.4]} 11... Bb6 {[%clk 0:02:39.2]} 12. Rd1 {[%clk 0:01:36.2]} 12...
h6 {[%clk 0:02:04.8]} 13. d5 {[%clk 0:01:28.2]} 13... exd5 {[%clk 0:02:04.9]}
14. Nxd5 {[%clk 0:01:24.1]} 14... Nxd5 {[%clk 0:02:03.6]} 15. Bxd5 {[%clk
0:01:22.3]} 15... Qf6 {[%clk 0:01:56.5]} 16. h3 {[%clk 0:01:02.3]} 16... Bd7
{[%clk 0:01:28.8]} 17. Qe4 {[%clk 0:00:24.5]} 17... Rad8 {[%clk 0:01:13.4]} 18.
Qf4 {[%clk 0:00:23.1]} 18... Qxf4 {[%clk 0:00:29.6]} 19. Bxf4 {[%clk 0:00:21.6]}
19... Rfe8 {[%clk 0:00:29.7]} 20. b4 {[%clk 0:00:17.4]} 20... Be6 {[%clk
0:00:28.1]} 21. Bxe6 {[%clk 0:00:16.3]} 21... Rxd1+ {[%clk 0:00:26.5]} 22. Rxd1
{[%clk 0:00:15.4]} 22... Rxe6 {[%clk 0:00:26.9]} 23. g3 {[%clk 0:00:14]} 23...
Re2 {[%clk 0:00:24.7]} 24. Rd2 {[%clk 0:00:12.8]} 24... Rxd2 {[%clk 0:00:10.9]}
25. Nxd2 {[%clk 0:00:12.6]} 25... Nd4 {[%clk 0:00:11.2]} 26. Nc4 {[%clk
0:00:11.8]} 26... Bd8 {[%clk 0:00:09.9]} 27. Be3 {[%clk 0:00:10.5]} 27... Bf6
{[%clk 0:00:08.5]} 28. Bxd4 {[%clk 0:00:09.9]} 28... Bxd4 {[%clk 0:00:08.2]} 29.
Kg2 {[%clk 0:00:10.5]} 29... f6 {[%clk 0:00:08.6]} 30. Kf3 {[%clk 0:00:11]}
30... Kf7 {[%clk 0:00:09.2]} 31. Ke2 {[%clk 0:00:11.5]} 31... Ke6 {[%clk
0:00:08.9]} 32. f4 {[%clk 0:00:12.1]} 32... a6 {[%clk 0:00:07.4]} 33. g4 {[%clk
0:00:11.4]} 33... b5 {[%clk 0:00:06.3]} 34. Nd2 {[%clk 0:00:11.4]} 34... Bb2
{[%clk 0:00:06.3]} 35. Nb1 {[%clk 0:00:10.3]} 35... Kd5 {[%clk 0:00:06.1]} 36.
Kd3 {[%clk 0:00:10.1]} 36... Bc1 {[%clk 0:00:05]} 37. f5 {[%clk 0:00:07.6]}
37... Bb2 {[%clk 0:00:02.1]} 38. h4 {[%clk 0:00:01.5]} 38... Be5 {[%clk
0:00:02.1]} 0-1

[Event "Late-Titled-Tuesday-Blitz-February-06-2024"]
[Site "Chess.com"]
[Date "2024.02.06"]
[Round "6"]
[White "jefferyx"]
[Black "Seochesspie"]
[Result "1-0"]
[WhiteElo "2993"]
[BlackElo "2794"]
[TimeControl "180+1"]
[EndTime "15:06:52 PST"]
[Termination "jefferyx won on time"]

1. d4 {[%clk 0:03:00.9]} 1... Nf6 {[%clk 0:03:00]} 2. c4 {[%clk 0:03:01.1]} 2...
g6 {[%clk 0:02:59.9]} 3. Nc3 {[%clk 0:03:01.2]} 3... Bg7 {[%clk 0:03:00.1]} 4.
e4 {[%clk 0:03:01.6]} 4... d6 {[%clk 0:03:00.5]} 5. Be2 {[%clk 0:03:02.1]} 5...
O-O {[%clk 0:03:00.2]} 6. Be3 {[%clk 0:03:02.6]} 6... a5 {[%clk 0:02:54.4]} 7.
h4 {[%clk 0:03:02.1]} 7... h5 {[%clk 0:02:53.5]} 8. Nh3 {[%clk 0:03:01.3]} 8...
Bxh3 {[%clk 0:02:52.2]} 9. Rxh3 {[%clk 0:03:01.1]} 9... Nc6 {[%clk 0:02:51.4]}
10. d5 {[%clk 0:02:55.2]} 10... Ne5 {[%clk 0:02:50.9]} 11. f3 {[%clk 0:02:54.8]}
11... e6 {[%clk 0:02:50.1]} 12. Qd2 {[%clk 0:02:53.1]} 12... exd5 {[%clk
0:02:50.1]} 13. cxd5 {[%clk 0:02:53.1]} 13... c6 {[%clk 0:02:49.4]} 14. Rd1
{[%clk 0:02:41.1]} 14... cxd5 {[%clk 0:02:13.1]} 15. Nxd5 {[%clk 0:02:42]} 15...
Nxd5 {[%clk 0:01:59.6]} 16. Qxd5 {[%clk 0:02:42.9]} 16... Qc8 {[%clk 0:01:49.9]}
17. Bd4 {[%clk 0:02:17.1]} 17... Qc2 {[%clk 0:01:43.5]} 18. Qb3 {[%clk
0:01:47.2]} 18... Qc7 {[%clk 0:01:24.4]} 19. f4 {[%clk 0:01:47.3]} 19... Nc6
{[%clk 0:01:12.2]} 20. Bxg7 {[%clk 0:01:48.2]} 20... Kxg7 {[%clk 0:01:12.6]} 21.
Qc3+ {[%clk 0:01:31.2]} 21... Kh7 {[%clk 0:01:09.8]} 22. Qf6 {[%clk 0:01:30.8]}
22... Rae8 {[%clk 0:01:06.2]} 23. f5 {[%clk 0:01:15.3]} 23... Ne5 {[%clk
0:00:57.8]} 24. Qxd6 {[%clk 0:01:07.4]} 24... Qc2 {[%clk 0:00:57.1]} 25. Re3
{[%clk 0:00:59.5]} 25... Qxb2 {[%clk 0:00:38.2]} 26. Qd2 {[%clk 0:00:59.4]}
26... Qb6 {[%clk 0:00:33.5]} 27. Qd4 {[%clk 0:00:59.4]} 27... Qf6 {[%clk
0:00:33]} 28. g3 {[%clk 0:00:58]} 28... Rd8 {[%clk 0:00:31.7]} 29. Qc5 {[%clk
0:00:57.1]} 29... Rxd1+ {[%clk 0:00:30.9]} 30. Bxd1 {[%clk 0:00:57.8]} 30... Rd8
{[%clk 0:00:29]} 31. Be2 {[%clk 0:00:57.7]} 31... b6 {[%clk 0:00:28.1]} 32. Qc7
{[%clk 0:00:57.7]} 32... Rd7 {[%clk 0:00:22.7]} 33. Qc3 {[%clk 0:00:56]} 33...
Qd6 {[%clk 0:00:20.3]} 34. Kf2 {[%clk 0:00:55.6]} 34... Qd4 {[%clk 0:00:18.7]}
35. Qxd4 {[%clk 0:00:45.3]} 35... Rxd4 {[%clk 0:00:19.6]} 36. Ra3 {[%clk
0:00:45.7]} 36... Rxe4 {[%clk 0:00:19.3]} 37. Rb3 {[%clk 0:00:45.2]} 37... Ra4
{[%clk 0:00:10.5]} 38. Rxb6 {[%clk 0:00:45]} 38... Rxa2 {[%clk 0:00:10.8]} 39.
Ke3 {[%clk 0:00:45.6]} 39... Ra3+ {[%clk 0:00:09]} 40. Kf4 {[%clk 0:00:45.2]}
40... Nd3+ {[%clk 0:00:09]} 41. Kg5 {[%clk 0:00:42.4]} 41... Nc5 {[%clk
0:00:08.9]} 42. g4 {[%clk 0:00:33.1]} 42... hxg4 {[%clk 0:00:06.1]} 43. Bxg4
{[%clk 0:00:34]} 43... Ne4+ {[%clk 0:00:05.9]} 44. Kf4 {[%clk 0:00:34.3]} 44...
Nf2 {[%clk 0:00:05.9]} 45. fxg6+ {[%clk 0:00:19.5]} 45... fxg6 {[%clk
0:00:05.7]} 46. Be6 {[%clk 0:00:20.2]} 46... Nd3+ {[%clk 0:00:05]} 47. Kg5
{[%clk 0:00:20.2]} 47... Nf2 {[%clk 0:00:03.5]} 48. Rb7+ {[%clk 0:00:20.2]}
48... Kh8 {[%clk 0:00:03.7]} 49. Kh6 {[%clk 0:00:18.3]} 1-0

[Event "Late-Titled-Tuesday-Blitz-February-06-2024"]
[Site "Chess.com"]
[Date "2024.02.06"]
[Round "6"]
[White "GMG"]
[Black "Escanor89"]
[Result "1-0"]
[WhiteElo "2682"]
[BlackElo "2518"]
[TimeControl "180+1"]
[EndTime "15:06:52 PST"]
[Termination "GMG won on time"]

1. d4 {[%clk 0:02:57.4]} 1... Nf6 {[%clk 0:02:59.3]} 2. c4 {[%clk 0:02:57.8]}
2... e6 {[%clk 0:02:58.8]} 3. Nf3 {[%clk 0:02:58.2]} 3... Bb4+ {[%clk
0:02:58.3]} 4. Bd2 {[%clk 0:02:57.6]} 4... a5 {[%clk 0:02:56.9]} 5. g3 {[%clk
0:02:55.6]} 5... b6 {[%clk 0:02:56.7]} 6. Bg2 {[%clk 0:02:54.8]} 6... Bb7 {[%clk
0:02:56.8]} 7. O-O {[%clk 0:02:55.2]} 7... O-O {[%clk 0:02:56.1]} 8. Bg5 {[%clk
0:02:55.3]} 8... Be7 {[%clk 0:02:41.8]} 9. Bxf6 {[%clk 0:02:51.6]} 9... Bxf6
{[%clk 0:02:41.4]} 10. Nc3 {[%clk 0:02:52.5]} 10... d6 {[%clk 0:02:35.4]} 11. h4
{[%clk 0:02:50.5]} 11... Nd7 {[%clk 0:02:32.5]} 12. Qc2 {[%clk 0:02:48.3]} 12...
g6 {[%clk 0:02:24.8]} 13. e4 {[%clk 0:02:47.5]} 13... Bg7 {[%clk 0:02:24.5]} 14.
Rad1 {[%clk 0:02:47.5]} 14... Qe7 {[%clk 0:02:23.6]} 15. Rfe1 {[%clk 0:02:47.4]}
15... Rfe8 {[%clk 0:02:15.9]} 16. b3 {[%clk 0:02:44]} 16... Rac8 {[%clk
0:02:14.5]} 17. a3 {[%clk 0:02:42.9]} 17... h6 {[%clk 0:02:01.3]} 18. h5 {[%clk
0:02:30.8]} 18... g5 {[%clk 0:01:59.8]} 19. d5 {[%clk 0:02:25.4]} 19... Ne5
{[%clk 0:01:46.1]} 20. Nd4 {[%clk 0:02:15.4]} 20... g4 {[%clk 0:01:29.8]} 21.
Qd2 {[%clk 0:02:01.5]} 21... Qg5 {[%clk 0:01:22.8]} 22. Qxg5 {[%clk 0:01:57.1]}
22... hxg5 {[%clk 0:01:23.7]} 23. Bf1 {[%clk 0:01:47.3]} 23... Kf8 {[%clk
0:01:16]} 24. Kg2 {[%clk 0:01:46.2]} 24... Ke7 {[%clk 0:01:15.6]} 25. Be2 {[%clk
0:01:46.7]} 25... Rh8 {[%clk 0:01:15.3]} 26. Rh1 {[%clk 0:01:47.2]} 26... Rh6
{[%clk 0:01:13.7]} 27. Ncb5 {[%clk 0:01:40.5]} 27... Kd7 {[%clk 0:01:08.9]} 28.
b4 {[%clk 0:01:23.2]} 28... axb4 {[%clk 0:00:55.4]} 29. axb4 {[%clk 0:01:24.1]}
29... Rch8 {[%clk 0:00:55.5]} 30. Ra1 {[%clk 0:01:23.9]} 30... Rxh5 {[%clk
0:00:41.6]} 31. Rxh5 {[%clk 0:01:24.8]} 31... Rxh5 {[%clk 0:00:42]} 32. Ra7
{[%clk 0:01:19.5]} 32... Kc8 {[%clk 0:00:26.1]} 33. Nc6 {[%clk 0:01:19.8]} 33...
Bf8 {[%clk 0:00:13.6]} 34. Nxe5 {[%clk 0:01:12.6]} 34... dxe5 {[%clk 0:00:13.6]}
35. Bxg4 {[%clk 0:01:12.6]} 35... Rh6 {[%clk 0:00:14]} 36. dxe6 {[%clk
0:01:01.4]} 36... fxe6 {[%clk 0:00:13.8]} 37. Ra4 {[%clk 0:00:53.2]} 37... Bxe4+
{[%clk 0:00:13]} 38. Bf3 {[%clk 0:00:53.6]} 38... Bxf3+ {[%clk 0:00:12.8]} 39.
Kxf3 {[%clk 0:00:54.5]} 39... Kb8 {[%clk 0:00:12.4]} 40. Na7 {[%clk 0:00:48.5]}
40... Rf6+ {[%clk 0:00:09.3]} 41. Ke2 {[%clk 0:00:27.6]} 41... Bd6 {[%clk
0:00:05.6]} 42. Nc6+ {[%clk 0:00:25.8]} 42... Kc8 {[%clk 0:00:04.6]} 43. b5
{[%clk 0:00:23.6]} 43... Kd7 {[%clk 0:00:03.9]} 44. Ra8 {[%clk 0:00:23.1]} 44...
Be7 {[%clk 0:00:04.1]} 45. Rg8 {[%clk 0:00:20.7]} 45... Rf7 {[%clk 0:00:04.1]}
46. Nxe5+ {[%clk 0:00:17.6]} 1-0

[Event "Late-Titled-Tuesday-Blitz-February-06-2024"]
[Site "Chess.com"]
[Date "2024.02.06"]
[Round "6"]
[White "sari07"]
[Black "Vicmary2005"]
[Result "1-0"]
[WhiteElo "2429"]
[BlackElo "2034"]
[TimeControl "180+1"]
[EndTime "15:06:55 PST"]
[Termination "sari07 won on time"]

1. d4 {[%clk 0:03:00.9]} 1... Nf6 {[%clk 0:02:59.9]} 2. Nc3 {[%clk 0:03:01.4]}
2... d5 {[%clk 0:02:58.6]} 3. Bf4 {[%clk 0:03:01.2]} 3... g6 {[%clk 0:02:58.4]}
4. e3 {[%clk 0:02:58.2]} 4... Bg7 {[%clk 0:02:58.3]} 5. Be2 {[%clk 0:02:58.4]}
5... O-O {[%clk 0:02:57.9]} 6. h4 {[%clk 0:02:58.3]} 6... h5 {[%clk 0:02:57.8]}
7. Nf3 {[%clk 0:02:56]} 7... c6 {[%clk 0:02:52.4]} 8. Ne5 {[%clk 0:02:54.9]}
8... Nbd7 {[%clk 0:02:51.8]} 9. f3 {[%clk 0:02:46.1]} 9... a6 {[%clk 0:02:19.6]}
10. g4 {[%clk 0:02:40.4]} 10... c5 {[%clk 0:02:18.1]} 11. g5 {[%clk 0:02:34.6]}
11... Ne8 {[%clk 0:02:14]} 12. Nxd7 {[%clk 0:02:30.4]} 12... Qxd7 {[%clk
0:02:11.5]} 13. dxc5 {[%clk 0:02:30.5]} 13... e6 {[%clk 0:01:59.2]} 14. Qd2
{[%clk 0:02:20]} 14... Qc6 {[%clk 0:01:54.8]} 15. b4 {[%clk 0:02:06.3]} 15... e5
{[%clk 0:01:30.7]} 16. Nxd5 {[%clk 0:02:01.7]} 16... Kh8 {[%clk 0:01:24.8]} 17.
Bg3 {[%clk 0:01:56.6]} 17... Be6 {[%clk 0:01:22.7]} 18. e4 {[%clk 0:01:51.6]}
18... Rd8 {[%clk 0:01:22.4]} 19. c4 {[%clk 0:01:51.2]} 19... Nc7 {[%clk
0:01:02.3]} 20. O-O {[%clk 0:01:49.3]} 20... b6 {[%clk 0:01:00.6]} 21. cxb6
{[%clk 0:01:42.7]} 21... Qxb6+ {[%clk 0:00:56.4]} 22. Bf2 {[%clk 0:01:36.1]}
22... Qc6 {[%clk 0:00:51.4]} 23. Qe3 {[%clk 0:01:23.8]} 23... Bh3 {[%clk
0:00:46.4]} 24. Rfd1 {[%clk 0:01:19.8]} 24... Ne6 {[%clk 0:00:46]} 25. Kh2
{[%clk 0:01:01.4]} 25... Nf4 {[%clk 0:00:42.5]} 26. Nxf4 {[%clk 0:00:57.8]}
26... exf4 {[%clk 0:00:43.4]} 27. Qxf4 {[%clk 0:00:58.7]} 27... Bxa1 {[%clk
0:00:39]} 28. Rxa1 {[%clk 0:00:55.6]} 28... Bc8 {[%clk 0:00:18]} 29. Be1 {[%clk
0:00:54.3]} 29... Qd6 {[%clk 0:00:16.4]} 30. Bc3+ {[%clk 0:00:54.1]} 30... Kg8
{[%clk 0:00:15.7]} 31. Qxd6 {[%clk 0:00:44.7]} 31... Rxd6 {[%clk 0:00:16.6]} 32.
c5 {[%clk 0:00:45.5]} 32... Re6 {[%clk 0:00:14.2]} 33. a4 {[%clk 0:00:43.4]}
33... Rd8 {[%clk 0:00:11.2]} 34. b5 {[%clk 0:00:43.1]} 34... axb5 {[%clk
0:00:11.3]} 35. axb5 {[%clk 0:00:44]} 35... Bb7 {[%clk 0:00:11.7]} 36. Ra7
{[%clk 0:00:41.3]} 36... Bxe4 {[%clk 0:00:08.6]} 37. fxe4 {[%clk 0:00:41.6]}
37... Rxe4 {[%clk 0:00:09.5]} 38. Ra2 {[%clk 0:00:35.3]} 38... Rde8 {[%clk
0:00:05.7]} 39. c6 {[%clk 0:00:32.6]} 39... Rxh4+ {[%clk 0:00:03.2]} 40. Kg3
{[%clk 0:00:30]} 40... Rhe4 {[%clk 0:00:01.1]} 41. c7 {[%clk 0:00:28.8]} 41...
Re3+ {[%clk 0:00:01.4]} 42. Kf2 {[%clk 0:00:28.5]} 42... Rxc3 {[%clk 0:00:02.3]}
43. b6 {[%clk 0:00:29.1]} 43... Rb3 {[%clk 0:00:02]} 44. Rc2 {[%clk 0:00:17.6]}
44... Rxb6 {[%clk 0:00:01.7]} 45. c8=Q {[%clk 0:00:17.3]} 45... Rxc8 {[%clk
0:00:01.9]} 46. Rxc8+ {[%clk 0:00:18]} 46... Kg7 {[%clk 0:00:01.4]} 47. Rc5
{[%clk 0:00:18.5]} 47... Re6 {[%clk 0:00:01.2]} 48. Bc4 {[%clk 0:00:17.8]} 1-0

[Event "Late-Titled-Tuesday-Blitz-February-06-2024"]
[Site "Chess.com"]
[Date "2024.02.06"]
[Round "6"]
[White "grzechu96"]
[Black "VladimirKramnik"]
[Result "0-1"]
[WhiteElo "2744"]
[BlackElo "2922"]
[TimeControl "180+1"]
[EndTime "15:06:56 PST"]
[Termination "VladimirKramnik won by resignation"]

1. e4 {[%clk 0:03:00.9]} 1... c5 {[%clk 0:02:58.9]} 2. Nf3 {[%clk 0:03:01.4]}
2... d6 {[%clk 0:02:59.1]} 3. d4 {[%clk 0:03:01.4]} 3... cxd4 {[%clk 0:02:59]}
4. Nxd4 {[%clk 0:03:02.3]} 4... Nf6 {[%clk 0:02:58.8]} 5. Nc3 {[%clk 0:03:02.9]}
5... a6 {[%clk 0:02:59]} 6. Be2 {[%clk 0:03:03.1]} 6... e5 {[%clk 0:02:58]} 7.
Nb3 {[%clk 0:03:03.5]} 7... Be7 {[%clk 0:02:58.5]} 8. Be3 {[%clk 0:03:02.9]}
8... Be6 {[%clk 0:02:57.7]} 9. Nd5 {[%clk 0:03:02.9]} 9... Nxd5 {[%clk
0:02:51.9]} 10. exd5 {[%clk 0:03:03.8]} 10... Bf5 {[%clk 0:02:52]} 11. O-O
{[%clk 0:03:03.2]} 11... Nd7 {[%clk 0:02:49.3]} 12. f4 {[%clk 0:02:49.5]} 12...
exf4 {[%clk 0:02:47.7]} 13. Bxf4 {[%clk 0:02:40.3]} 13... O-O {[%clk 0:02:47.2]}
14. Qd2 {[%clk 0:02:33.5]} 14... Re8 {[%clk 0:02:40.1]} 15. Kh1 {[%clk
0:02:30.8]} 15... Be4 {[%clk 0:02:26.3]} 16. Bf3 {[%clk 0:02:21.1]} 16... Bf6
{[%clk 0:02:07.8]} 17. c3 {[%clk 0:02:16.5]} 17... Bxf3 {[%clk 0:02:04.6]} 18.
Rxf3 {[%clk 0:02:17.4]} 18... Ne5 {[%clk 0:02:01.8]} 19. Rff1 {[%clk 0:02:07.7]}
19... Nc4 {[%clk 0:02:00.9]} 20. Qf2 {[%clk 0:02:04.4]} 20... Qb6 {[%clk
0:01:55.1]} 21. Qxb6 {[%clk 0:02:01.5]} 21... Nxb6 {[%clk 0:01:54.3]} 22. Bxd6
{[%clk 0:01:52.4]} 22... Nxd5 {[%clk 0:01:54.1]} 23. Rfe1 {[%clk 0:01:35.3]}
23... Ne3 {[%clk 0:01:51.5]} 24. Kg1 {[%clk 0:01:04.6]} 24... Nc4 {[%clk
0:01:50.1]} 25. Bg3 {[%clk 0:00:54.6]} 25... Nxb2 {[%clk 0:01:47.9]} 26. Rxe8+
{[%clk 0:00:45.9]} 26... Rxe8 {[%clk 0:01:48]} 27. Nc5 {[%clk 0:00:46.4]} 27...
Bxc3 {[%clk 0:01:38.5]} 28. Nxb7 {[%clk 0:00:45]} 28... Nd3 {[%clk 0:01:33.7]}
29. Rd1 {[%clk 0:00:43.7]} 29... Nb4 {[%clk 0:01:20.8]} 30. a4 {[%clk
0:00:39.7]} 30... h5 {[%clk 0:01:18.7]} 31. Kf1 {[%clk 0:00:32.8]} 31... Nc2
{[%clk 0:01:04.3]} 32. Bf2 {[%clk 0:00:33]} 32... Ne3+ {[%clk 0:00:58.1]} 33.
Bxe3 {[%clk 0:00:33.2]} 33... Rxe3 {[%clk 0:00:58.5]} 34. Rd6 {[%clk 0:00:21.1]}
34... Re1+ {[%clk 0:00:49.9]} 35. Kf2 {[%clk 0:00:20.6]} 35... Rb1 {[%clk
0:00:50.6]} 36. Nc5 {[%clk 0:00:17.4]} 36... a5 {[%clk 0:00:49.5]} 37. Ne4
{[%clk 0:00:17.3]} 37... Bb4 {[%clk 0:00:41.6]} 38. Rd7 {[%clk 0:00:16.5]} 38...
f6 {[%clk 0:00:34.9]} 39. Rd5 {[%clk 0:00:16.6]} 39... h4 {[%clk 0:00:33.1]} 40.
Kf3 {[%clk 0:00:01.8]} 40... Ra1 {[%clk 0:00:32.2]} 41. Kg4 {[%clk 0:00:02.2]}
41... Rxa4 {[%clk 0:00:31]} 42. Kf5 {[%clk 0:00:02.7]} 42... Kh7 {[%clk
0:00:24.4]} 43. Rd7 {[%clk 0:00:02.6]} 43... Kh6 {[%clk 0:00:17.8]} 44. Rd8
{[%clk 0:00:02.8]} 44... g6+ {[%clk 0:00:17.9]} 45. Kxf6 {[%clk 0:00:01.5]}
45... Be7+ {[%clk 0:00:17.5]} 46. Kxe7 {[%clk 0:00:02.1]} 46... Rxe4+ {[%clk
0:00:17.5]} 47. Kf6 {[%clk 0:00:03]} 47... Rf4+ {[%clk 0:00:17]} 48. Ke5 {[%clk
0:00:03.6]} 48... Kg5 {[%clk 0:00:16.4]} 49. Rf8 {[%clk 0:00:02.5]} 49... Rxf8
{[%clk 0:00:15.7]} 0-1

[Event "Late-Titled-Tuesday-Blitz-February-06-2024"]
[Site "Chess.com"]
[Date "2024.02.06"]
[Round "6"]
[White "Hrant_ChessMood"]
[Black "Orest_Vovk"]
[Result "1-0"]
[WhiteElo "2923"]
[BlackElo "2582"]
[TimeControl "180+1"]
[EndTime "15:06:56 PST"]
[Termination "Hrant_ChessMood won by resignation"]

1. e4 {[%clk 0:03:00.9]} 1... g5 {[%clk 0:02:59.8]} 2. d4 {[%clk 0:03:00.4]}
2... g4 {[%clk 0:02:59.9]} 3. Qxg4 {[%clk 0:02:58.8]} 3... d5 {[%clk 0:02:59.7]}
4. Qh4 {[%clk 0:02:55.8]} 4... dxe4 {[%clk 0:02:59.9]} 5. Nc3 {[%clk 0:02:55.9]}
5... Nf6 {[%clk 0:02:55.9]} 6. Bg5 {[%clk 0:02:54.3]} 6... Qxd4 {[%clk
0:02:48.4]} 7. Nge2 {[%clk 0:02:54.2]} 7... Qe5 {[%clk 0:02:43.8]} 8. O-O-O
{[%clk 0:02:51.5]} 8... Bf5 {[%clk 0:02:28.6]} 9. Ng3 {[%clk 0:02:48.9]} 9...
Nbd7 {[%clk 0:02:15.2]} 10. Bf4 {[%clk 0:02:12.9]} 10... Qa5 {[%clk 0:02:10.8]}
11. Nb5 {[%clk 0:02:09.5]} 11... Qxa2 {[%clk 0:01:49.6]} 12. Nxc7+ {[%clk
0:02:08.7]} 12... Kd8 {[%clk 0:01:49.1]} 13. Nxf5 {[%clk 0:02:06.7]} 13... Qa1+
{[%clk 0:01:41.5]} 14. Kd2 {[%clk 0:02:06.8]} 14... Qa5+ {[%clk 0:01:39.8]} 15.
Kc1 {[%clk 0:02:01.2]} 15... Qa1+ {[%clk 0:01:36]} 16. Kd2 {[%clk 0:02:01.2]}
16... Qa5+ {[%clk 0:01:36.3]} 17. c3 {[%clk 0:01:42.6]} 17... Qxf5 {[%clk
0:01:35.3]} 18. g3 {[%clk 0:01:36]} 18... Rc8 {[%clk 0:01:16.1]} 19. Bh3 {[%clk
0:01:33.4]} 19... Qa5 {[%clk 0:01:06.6]} 20. Kc1 {[%clk 0:01:06.4]} 20... Rxc7
{[%clk 0:00:59.4]} 21. Bxc7+ {[%clk 0:01:04.6]} 21... Kxc7 {[%clk 0:00:49.6]}
22. Bxd7 {[%clk 0:01:04.4]} 22... Nxd7 {[%clk 0:00:48.8]} 23. Qxe4 {[%clk
0:01:04.7]} 23... Qc5 {[%clk 0:00:18.3]} 24. Rd2 {[%clk 0:00:53.2]} 24... Bh6
{[%clk 0:00:12.3]} 25. f4 {[%clk 0:00:53.2]} 25... Rd8 {[%clk 0:00:11.4]} 26.
Qxh7 {[%clk 0:00:51]} 26... Bf8 {[%clk 0:00:09.3]} 27. Qxf7 {[%clk 0:00:50.2]}
27... e6 {[%clk 0:00:07.8]} 28. Rhd1 {[%clk 0:00:48.5]} 28... Qc6 {[%clk
0:00:06.9]} 29. Rxd7+ {[%clk 0:00:44.9]} 29... Rxd7 {[%clk 0:00:06.3]} 30. Rxd7+
{[%clk 0:00:45.6]} 30... Qxd7 {[%clk 0:00:06.9]} 31. Qxf8 {[%clk 0:00:46.3]}
31... Qd5 {[%clk 0:00:05.9]} 32. Qg7+ {[%clk 0:00:45.4]} 32... Kc6 {[%clk
0:00:05.1]} 33. Qg4 {[%clk 0:00:39.4]} 33... Qh1+ {[%clk 0:00:04.5]} 34. Kc2
{[%clk 0:00:38.9]} 34... Qxh2+ {[%clk 0:00:05.4]} 35. Kb3 {[%clk 0:00:39.4]}
35... Qh6 {[%clk 0:00:05.4]} 36. Qf3+ {[%clk 0:00:38.8]} 36... Kc7 {[%clk
0:00:05.3]} 37. Qe3 {[%clk 0:00:38.4]} 37... Qg6 {[%clk 0:00:03.7]} 38. Qc5+
{[%clk 0:00:28.7]} 38... Kd7 {[%clk 0:00:03.8]} 39. Qg5 {[%clk 0:00:25.6]} 39...
Qf7 {[%clk 0:00:03.3]} 40. Qb5+ {[%clk 0:00:20.1]} 40... Kc7 {[%clk 0:00:03.3]}
41. Qc4+ {[%clk 0:00:19.7]} 41... Kd7 {[%clk 0:00:02.8]} 42. g4 {[%clk
0:00:20.6]} 42... Qe7 {[%clk 0:00:02]} 43. g5 {[%clk 0:00:20.3]} 43... Qd6
{[%clk 0:00:01.9]} 44. Qd4 {[%clk 0:00:20.4]} 44... Kc6 {[%clk 0:00:02.1]} 45.
Qxd6+ {[%clk 0:00:20.1]} 45... Kxd6 {[%clk 0:00:03]} 46. Kc4 {[%clk 0:00:21]}
46... e5 {[%clk 0:00:03.5]} 47. g6 {[%clk 0:00:19.1]} 47... exf4 {[%clk
0:00:03.1]} 48. g7 {[%clk 0:00:19.3]} 48... f3 {[%clk 0:00:04]} 49. g8=Q {[%clk
0:00:19.5]} 49... f2 {[%clk 0:00:04.9]} 50. Qg3+ {[%clk 0:00:20.1]} 1-0